Workbook

Sheet Ав.отч Бланк (0)
E1: Номер | F1: Дата
D2: Авансовый отчёт | E2: 01
C3: Подотчетное лицо | D3: Шоломицкая Е.В.
C4: Предыдущий аванс отчет Остаток | E4: 0
D5: Перерасход (выдаётся на руки) | E5: 0
C6: Получено из кассы
C7: Дата | D7: от кого
B8: 1 | C8: 2020-01-31 | D8: от КОНЯ
B9: 2
B10: 3
B11: 4
B12: 5
B13: 6
D14: Итого получено | E14: =SUM(E8:F13) -> 0
D15: Израсходовано | E15: =I41+E5 -> 0 | G15: Принятое решение
D16: Остаток (на руках) | E16: =E14-E15 -> 0 | G16: перенесено в отчет №02
D17: Перерасход | E17: =MAX(-E16,0) -> 0 | G17: перенесено в отчет №02
A19: № п/п | B19: Дата | C19: Чек, организация | D19: Вид расходов | E19: Куда | F19: количество | G19: цена за ед. | H19: Цена | I19: АО "ПСЗ "Янтарь"
A20: =IF(ISBLANK(#REF!),"",COUNTA(#REF!)) -> 1 | B20: 2017-04-18 | C20: Рога и Копыта | D20: На новоз | E20: На ферму | H20: =F20*G20 -> 0 | I20: =H20 -> 0
A21: =IF(ISBLANK(D21),"",COUNTA($D$20:D21)) ->  | B21: 2017-04-20 | H21: =F21*G21 -> 0 | I21: =H21 -> 0
A22: =IF(ISBLANK(D22),"",COUNTA($D$20:D22)) ->  | B22: 2017-04-21 | H22: 0 | I22: 0
A23: =IF(ISBLANK(D23),"",COUNTA($D$20:D23)) ->  | B23: 2017-04-23 | H23: 0 | I23: 0
A24: =IF(ISBLANK(D24),"",COUNTA($D$20:D24)) ->  | B24: 2017-04-23 | H24: 0 | I24: 0
A25: =IF(ISBLANK(D25),"",COUNTA($D$20:D25)) ->  | H25: 0 | I25: 0
A26: =IF(ISBLANK(D26),"",COUNTA($D$20:D26)) ->  | H26: 0 | I26: 0
A27: =IF(ISBLANK(D27),"",COUNTA($D$20:D27)) ->  | H27: 0 | I27: 0
A28: =IF(ISBLANK(D28),"",COUNTA($D$20:D28)) ->  | H28: 0 | I28: 0
A29: =IF(ISBLANK(D29),"",COUNTA($D$20:D29)) ->  | H29: 0 | I29: 0
A30: =IF(ISBLANK(D30),"",COUNTA($D$20:D30)) ->  | H30: 0 | I30: 0
A31: =IF(ISBLANK(D31),"",COUNTA($D$20:D31)) ->  | H31: 0 | I31: 0
A32: =IF(ISBLANK(D32),"",COUNTA($D$20:D32)) ->  | H32: 0 | I32: 0
A33: =IF(ISBLANK(D33),"",COUNTA($D$20:D33)) ->  | H33: 0 | I33: 0
A34: =IF(ISBLANK(D34),"",COUNTA($D$20:D34)) ->  | H34: 0 | I34: 0
A35: =IF(ISBLANK(D35),"",COUNTA($D$20:D35)) ->  | H35: 0 | I35: 0
A36: =IF(ISBLANK(D36),"",COUNTA($D$20:D36)) ->  | H36: 0 | I36: 0
A37: =IF(ISBLANK(D37),"",COUNTA($D$20:D37)) ->  | H37: 0 | I37: 0
A38: =IF(ISBLANK(D38),"",COUNTA($D$20:D38)) ->  | H38: 0 | I38: 0
A39: =IF(ISBLANK(D39),"",COUNTA($D$20:D39)) ->  | H39: 0 | I39: 0
A40: =IF(ISBLANK(D40),"",COUNTA($D$20:D40)) ->  | H40: 0 | I40: 0
A41: Итого получено на сумму | I41: =SUM(I20:I40) -> 0

Sheet Ав.отч Бланк (1)
E1: Номер | F1: Дата
D2: Авансовый отчёт | E2: 01
C3: Подотчетное лицо | D3: Шоломицкая Е.В.
C4: Предыдущий аванс отчет Остаток | E4: =IF(E5>0,-E5,"") -> 
D5: Перерасход (выдаётся на руки) | E5: =IF('Ав.отч Бланк (0)'!E17<>"",'Ав.отч Бланк (0)'!E17,"") -> 0
C6: Получено из кассы
C7: Дата | D7: от кого
B8: 1 | C8: 2017-04-18 | E8: 6000
B9: 2
B10: 3
B11: 4
B12: 5
B13: 6
D14: Итого получено | E14: =SUM(E8:F13) -> 6000
D15: Израсходовано | E15: =I41+E5 -> 6219 | G15: Принятое решение
D16: Остаток (на руках) | E16: =E14-E15 -> -219 | G16: перенесено в отчет №02
D17: Перерасход | E17: =MAX(-E16,0) -> 219 | G17: перенесено в отчет №02
A19: № п/п | B19: Дата | C19: Чек, организация | D19: Вид расходов | E19: Куда | F19: количество | G19: цена за ед. | H19: Цена | I19: АО "ПСЗ "Янтарь"
A20: =IF(ISBLANK(#REF!),"",COUNTA(#REF!)) -> 1 | B20: 2017-04-18 | C20: без чека | D20: Получение пропусков | E20: Для прохода через КПП завода | F20: 7 | G20: 100 | H20: =F20*G20 -> 700 | I20: =H20 -> 700
A21: =IF(ISBLANK(D21),"",COUNTA($D$20:D21)) -> 2 | B21: 2017-04-20 | C21: ИП Гись О.П. | D21: Бланки накладны А5 | F21: 1 | G21: 62 | H21: =F21*G21 -> 62 | I21: =H21 -> 62
A22: =IF(ISBLANK(D22),"",COUNTA($D$20:D22)) -> 3 | B22: 2017-04-21 | C22: без чека | D22: Манипулятор, Превозка бытовки | E22: на завод (1300р/ч) | F22: 4 | G22: 1300 | H22: 5200 | I22: 5200
A23: =IF(ISBLANK(D23),"",COUNTA($D$20:D23)) -> 4 | B23: 2017-04-23 | C23: ИП Рудометкин А.А. | D23: Печать ч/б принт А4 | E23: Распечатка накладных, на завод | F23: 4 | G23: 1.5 | H23: 6 | I23: 6
A24: =IF(ISBLANK(D24),"",COUNTA($D$20:D24)) -> 5 | B24: 2017-04-23 | C24: ИП Рудометкин А.А. | D24: Бумага XEROCOPY А4 80г/м.кв. | E24: Распечатка накладных, на завод | F24: 4 | G24: 1 | H24: 4 | I24: 4
A25: =IF(ISBLANK(D25),"",COUNTA($D$20:D25)) ->  | F25: 3 | G25: 1 | H25: 3 | I25: 3
A26: =IF(ISBLANK(D26),"",COUNTA($D$20:D26)) ->  | F26: 5 | G26: 25 | H26: 125 | I26: 125
A27: =IF(ISBLANK(D27),"",COUNTA($D$20:D27)) ->  | F27: 9 | G27: 7 | H27: 63 | I27: 63
A28: =IF(ISBLANK(D28),"",COUNTA($D$20:D28)) ->  | F28: 8 | G28: 7 | H28: 56 | I28: 56
A29: =IF(ISBLANK(D29),"",COUNTA($D$20:D29)) ->  | H29: 0 | I29: 0
A30: =IF(ISBLANK(D30),"",COUNTA($D$20:D30)) ->  | H30: 0 | I30: 0
A31: =IF(ISBLANK(D31),"",COUNTA($D$20:D31)) ->  | H31: 0 | I31: 0
A32: =IF(ISBLANK(D32),"",COUNTA($D$20:D32)) ->  | H32: 0 | I32: 0
A33: =IF(ISBLANK(D33),"",COUNTA($D$20:D33)) ->  | H33: 0 | I33: 0
A34: =IF(ISBLANK(D34),"",COUNTA($D$20:D34)) ->  | H34: 0 | I34: 0
A35: =IF(ISBLANK(D35),"",COUNTA($D$20:D35)) ->  | H35: 0 | I35: 0
A36: =IF(ISBLANK(D36),"",COUNTA($D$20:D36)) ->  | H36: 0 | I36: 0
A37: =IF(ISBLANK(D37),"",COUNTA($D$20:D37)) ->  | H37: 0 | I37: 0
A38: =IF(ISBLANK(D38),"",COUNTA($D$20:D38)) ->  | H38: 0 | I38: 0
A39: =IF(ISBLANK(D39),"",COUNTA($D$20:D39)) ->  | H39: 0 | I39: 0
A40: =IF(ISBLANK(D40),"",COUNTA($D$20:D40)) ->  | H40: 0 | I40: 0
A41: Итого получено на сумму | I41: =SUM(I20:I40) -> 6219

Sheet Ав.отч Бланк (2)
E1: Номер | F1: Дата
D2: Авансовый отчёт | E2: 01
C3: Подотчетное лицо | D3: Шоломицкая Е.В.
C4: Предыдущий аванс отчет Остаток | E4: =IF(E5>0,-E5,"") -> -219
D5: Перерасход (выдаётся на руки) | E5: =IF('Ав.отч Бланк (1)'!E17<>"",'Ав.отч Бланк (1)'!E17,"") -> 219
C6: Получено из кассы
C7: Дата | D7: от кого
B8: 1 | C8: 2017-04-18 | E8: 2000
B9: 2
B10: 3
B11: 4
B12: 5
B13: 6
D14: Итого получено | E14: =SUM(E8:F13) -> 2000
D15: Израсходовано | E15: =I41+E5 -> 3359 | G15: Принятое решение
D16: Остаток (на руках) | E16: =E14-E15 -> -1359 | G16: перенесено в отчет №03
D17: Перерасход | E17: =IF(E16<0,-E16,"") -> 1359 | G17: перенесено в отчет №03
A19: № п/п | B19: Дата | C19: Чек, организация | D19: Вид расходов | E19: Куда | F19: количество | G19: цена за ед. | H19: Цена | I19: АО "ПСЗ "Янтарь"
A20: =IF(ISBLANK(#REF!),"",COUNTA(#REF!)) -> 1 | B20: 2017-04-18 | C20: без чека | D20: Получение пропусков | E20: Для прохода через КПП завода | H20: =F20*G20 -> 0 | I20: =H20 -> 0
A21: =IF(ISBLANK(D21),"",COUNTA($D$20:D21)) -> 2 | B21: 2017-04-20 | C21: ИП Гись О.П. | D21: Бланки накладны А5 | F21: 1 | G21: 1000 | H21: =F21*G21 -> 1000 | I21: =H21 -> 1000
A22: =IF(ISBLANK(D22),"",COUNTA($D$20:D22)) -> 3 | B22: 2017-04-21 | C22: без чека | D22: Манипулятор, Превозка бытовки | E22: на завод (1300р/ч) | F22: 1 | G22: 2000 | H22: 2000 | I22: 2000
A23: =IF(ISBLANK(D23),"",COUNTA($D$20:D23)) -> 4 | B23: 2017-04-23 | C23: ИП Рудометкин А.А. | D23: Печать ч/б принт А4 | E23: Распечатка накладных, на завод | F23: 5 | G23: 28 | H23: 140 | I23: 140
A24: =IF(ISBLANK(D24),"",COUNTA($D$20:D24)) -> 5 | B24: 2017-04-23 | C24: ИП Рудометкин А.А. | D24: Бумага XEROCOPY А4 80г/м.кв. | E24: Распечатка накладных, на завод | H24: 0 | I24: 0
A25: =IF(ISBLANK(D25),"",COUNTA($D$20:D25)) ->  | H25: 0 | I25: 0
A26: =IF(ISBLANK(D26),"",COUNTA($D$20:D26)) ->  | H26: 0 | I26: 0
A27: =IF(ISBLANK(D27),"",COUNTA($D$20:D27)) ->  | H27: 0 | I27: 0
A28: =IF(ISBLANK(D28),"",COUNTA($D$20:D28)) ->  | H28: 0 | I28: 0
A29: =IF(ISBLANK(D29),"",COUNTA($D$20:D29)) ->  | H29: 0 | I29: 0
A30: =IF(ISBLANK(D30),"",COUNTA($D$20:D30)) ->  | H30: 0 | I30: 0
A31: =IF(ISBLANK(D31),"",COUNTA($D$20:D31)) ->  | H31: 0 | I31: 0
A32: =IF(ISBLANK(D32),"",COUNTA($D$20:D32)) ->  | H32: 0 | I32: 0
A33: =IF(ISBLANK(D33),"",COUNTA($D$20:D33)) ->  | H33: 0 | I33: 0
A34: =IF(ISBLANK(D34),"",COUNTA($D$20:D34)) ->  | H34: 0 | I34: 0
A35: =IF(ISBLANK(D35),"",COUNTA($D$20:D35)) ->  | H35: 0 | I35: 0
A36: =IF(ISBLANK(D36),"",COUNTA($D$20:D36)) ->  | H36: 0 | I36: 0
A37: =IF(ISBLANK(D37),"",COUNTA($D$20:D37)) ->  | H37: 0 | I37: 0
A38: =IF(ISBLANK(D38),"",COUNTA($D$20:D38)) ->  | H38: 0 | I38: 0
A39: =IF(ISBLANK(D39),"",COUNTA($D$20:D39)) ->  | H39: 0 | I39: 0
A40: =IF(ISBLANK(D40),"",COUNTA($D$20:D40)) ->  | H40: 0 | I40: 0
A41: Итого получено на сумму | I41: =SUM(I20:I40) -> 3140

Sheet Ав.отч Бланк (3)
E1: Номер | F1: Дата
D2: Авансовый отчёт | E2: 01
C3: Подотчетное лицо | D3: Шоломицкая Е.В.
C4: Предыдущий аванс отчет Остаток | E4: =IF(E5>0,-E5,"") -> -1359
D5: Перерасход (выдаётся на руки) | E5: =IF('Ав.отч Бланк (2)'!E17<>"",'Ав.отч Бланк (2)'!E17,"") -> 1359
C6: Получено из кассы
C7: Дата | D7: от кого
B8: 1 | C8: 2017-04-18 | E8: 2000
B9: 2
B10: 3
B11: 4
B12: 5
B13: 6
D14: Итого получено | E14: =SUM(E8:F13) -> 2000
D15: Израсходовано | E15: =I41+E5 -> 4499 | G15: Принятое решение
D16: Остаток (на руках) | E16: =E14-E15 -> -2499 | G16: перенесено в отчет №03
D17: Перерасход | E17: =IF(E16<0,-E16,"") -> 2499 | G17: перенесено в отчет №03
A19: № п/п | B19: Дата | C19: Чек, организация | D19: Вид расходов | E19: Куда | F19: количество | G19: цена за ед. | H19: Цена | I19: АО "ПСЗ "Янтарь"
A20: =IF(ISBLANK(#REF!),"",COUNTA(#REF!)) -> 1 | B20: 2017-04-18 | C20: без чека | D20: Получение пропусков | E20: Для прохода через КПП завода | H20: =F20*G20 -> 0 | I20: =H20 -> 0
A21: =IF(ISBLANK(D21),"",COUNTA($D$20:D21)) -> 2 | B21: 2017-04-20 | C21: ИП Гись О.П. | D21: Бланки накладны А5 | F21: 1 | G21: 1000 | H21: =F21*G21 -> 1000 | I21: =H21 -> 1000
A22: =IF(ISBLANK(D22),"",COUNTA($D$20:D22)) -> 3 | B22: 2017-04-21 | C22: без чека | D22: Манипулятор, Превозка бытовки | E22: на завод (1300р/ч) | F22: 1 | G22: 2000 | H22: 2000 | I22: 2000
A23: =IF(ISBLANK(D23),"",COUNTA($D$20:D23)) -> 4 | B23: 2017-04-23 | C23: ИП Рудометкин А.А. | D23: Печать ч/б принт А4 | E23: Распечатка накладных, на завод | F23: 5 | G23: 28 | H23: 140 | I23: 140
A24: =IF(ISBLANK(D24),"",COUNTA($D$20:D24)) -> 5 | B24: 2017-04-23 | C24: ИП Рудометкин А.А. | D24: Бумага XEROCOPY А4 80г/м.кв. | E24: Распечатка накладных, на завод | H24: 0 | I24: 0
A25: =IF(ISBLANK(D25),"",COUNTA($D$20:D25)) ->  | H25: 0 | I25: 0
A26: =IF(ISBLANK(D26),"",COUNTA($D$20:D26)) ->  | H26: 0 | I26: 0
A27: =IF(ISBLANK(D27),"",COUNTA($D$20:D27)) ->  | H27: 0 | I27: 0
A28: =IF(ISBLANK(D28),"",COUNTA($D$20:D28)) ->  | H28: 0 | I28: 0
A29: =IF(ISBLANK(D29),"",COUNTA($D$20:D29)) ->  | H29: 0 | I29: 0
A30: =IF(ISBLANK(D30),"",COUNTA($D$20:D30)) ->  | H30: 0 | I30: 0
A31: =IF(ISBLANK(D31),"",COUNTA($D$20:D31)) ->  | H31: 0 | I31: 0
A32: =IF(ISBLANK(D32),"",COUNTA($D$20:D32)) ->  | H32: 0 | I32: 0
A33: =IF(ISBLANK(D33),"",COUNTA($D$20:D33)) ->  | H33: 0 | I33: 0
A34: =IF(ISBLANK(D34),"",COUNTA($D$20:D34)) ->  | H34: 0 | I34: 0
A35: =IF(ISBLANK(D35),"",COUNTA($D$20:D35)) ->  | H35: 0 | I35: 0
A36: =IF(ISBLANK(D36),"",COUNTA($D$20:D36)) ->  | H36: 0 | I36: 0
A37: =IF(ISBLANK(D37),"",COUNTA($D$20:D37)) ->  | H37: 0 | I37: 0
A38: =IF(ISBLANK(D38),"",COUNTA($D$20:D38)) ->  | H38: 0 | I38: 0
A39: =IF(ISBLANK(D39),"",COUNTA($D$20:D39)) ->  | H39: 0 | I39: 0
A40: =IF(ISBLANK(D40),"",COUNTA($D$20:D40)) ->  | H40: 0 | I40: 0
A41: Итого получено на сумму | I41: =SUM(I20:I40) -> 3140

Sheet Ав.отч Бланк (4)
E1: Номер | F1: Дата
D2: Авансовый отчёт | E2: 01
C3: Подотчетное лицо | D3: Шоломицкая Е.В.
C4: Предыдущий аванс отчет Остаток | E4: =IF(E5>0,-E5,"") -> -2499
D5: Перерасход (выдаётся на руки) | E5: =IF('Ав.отч Бланк (3)'!E17<>"",'Ав.отч Бланк (3)'!E17,"") -> 2499
C6: Получено из кассы
C7: Дата | D7: от кого
B8: 1 | C8: 2017-04-18 | E8: 2000
B9: 2
B10: 3
B11: 4
B12: 5
B13: 6
D14: Итого получено | E14: =SUM(E8:F13) -> 2000
D15: Израсходовано | E15: =I41+E5 -> 5639 | G15: Принятое решение
D16: Остаток (на руках) | E16: =E14-E15 -> -3639 | G16: перенесено в отчет №03
D17: Перерасход | E17: =IF(E16<0,-E16,"") -> 3639 | G17: перенесено в отчет №03
A19: № п/п | B19: Дата | C19: Чек, организация | D19: Вид расходов | E19: Куда | F19: количество | G19: цена за ед. | H19: Цена | I19: АО "ПСЗ "Янтарь"
A20: =IF(ISBLANK(#REF!),"",COUNTA(#REF!)) -> 1 | B20: 2017-04-18 | C20: без чека | D20: Получение пропусков | E20: Для прохода через КПП завода | H20: =F20*G20 -> 0 | I20: =H20 -> 0
A21: =IF(ISBLANK(D21),"",COUNTA($D$20:D21)) -> 2 | B21: 2017-04-20 | C21: ИП Гись О.П. | D21: Бланки накладны А5 | F21: 1 | G21: 1000 | H21: =F21*G21 -> 1000 | I21: =H21 -> 1000
A22: =IF(ISBLANK(D22),"",COUNTA($D$20:D22)) -> 3 | B22: 2017-04-21 | C22: без чека | D22: Манипулятор, Превозка бытовки | E22: на завод (1300р/ч) | F22: 1 | G22: 2000 | H22: 2000 | I22: 2000
A23: =IF(ISBLANK(D23),"",COUNTA($D$20:D23)) -> 4 | B23: 2017-04-23 | C23: ИП Рудометкин А.А. | D23: Печать ч/б принт А4 | E23: Распечатка накладных, на завод | F23: 5 | G23: 28 | H23: 140 | I23: 140
A24: =IF(ISBLANK(D24),"",COUNTA($D$20:D24)) -> 5 | B24: 2017-04-23 | C24: ИП Рудометкин А.А. | D24: Бумага XEROCOPY А4 80г/м.кв. | E24: Распечатка накладных, на завод | H24: 0 | I24: 0
A25: =IF(ISBLANK(D25),"",COUNTA($D$20:D25)) ->  | H25: 0 | I25: 0
A26: =IF(ISBLANK(D26),"",COUNTA($D$20:D26)) ->  | H26: 0 | I26: 0
A27: =IF(ISBLANK(D27),"",COUNTA($D$20:D27)) ->  | H27: 0 | I27: 0
A28: =IF(ISBLANK(D28),"",COUNTA($D$20:D28)) ->  | H28: 0 | I28: 0
A29: =IF(ISBLANK(D29),"",COUNTA($D$20:D29)) ->  | H29: 0 | I29: 0
A30: =IF(ISBLANK(D30),"",COUNTA($D$20:D30)) ->  | H30: 0 | I30: 0
A31: =IF(ISBLANK(D31),"",COUNTA($D$20:D31)) ->  | H31: 0 | I31: 0
A32: =IF(ISBLANK(D32),"",COUNTA($D$20:D32)) ->  | H32: 0 | I32: 0
A33: =IF(ISBLANK(D33),"",COUNTA($D$20:D33)) ->  | H33: 0 | I33: 0
A34: =IF(ISBLANK(D34),"",COUNTA($D$20:D34)) ->  | H34: 0 | I34: 0
A35: =IF(ISBLANK(D35),"",COUNTA($D$20:D35)) ->  | H35: 0 | I35: 0
A36: =IF(ISBLANK(D36),"",COUNTA($D$20:D36)) ->  | H36: 0 | I36: 0
A37: =IF(ISBLANK(D37),"",COUNTA($D$20:D37)) ->  | H37: 0 | I37: 0
A38: =IF(ISBLANK(D38),"",COUNTA($D$20:D38)) ->  | H38: 0 | I38: 0
A39: =IF(ISBLANK(D39),"",COUNTA($D$20:D39)) ->  | H39: 0 | I39: 0
A40: =IF(ISBLANK(D40),"",COUNTA($D$20:D40)) ->  | H40: 0 | I40: 0
A41: Итого получено на сумму | I41: =SUM(I20:I40) -> 3140
